bitfinex/quotes_ETHUSD_20220109
["timestamp","ask_amount","ask_price","bid_price","bid_amount"]
[1641727048418,3.74331746,3127.8,3126.9,0.00616843]
[1641727048619,3.9051,3128.3,3127.0,1.48515695]
[1641727048819,3.9051,3128.3,3128.1,1.05016641]
[1641727049021,0.01205445,3128.9,3128.1,1.85546641]
[1641727049570,0.01364217,3128.6,3128.3,0.64121159]
[1641727049971,0.01307374,3128.5,3128.1,1.85546641]
[1641727050372,0.01250532,3128.4,3128.1,1.85546641]
[1641727050771,0.01193689,3128.3,3128.1,1.85546641]
[1641727051174,0.79974,3128.5,3128.2,0.75880523]
[1641727051376,0.03,3128.7,3128.2,0.75880523]
[1641727051579,0.01364217,3128.6,3128.2,0.75880523]
[1641727051774,1.92087342,3128.3,3128.1,0.65969825]
[1641727051974,0.88181505,3127.8,3127.5,4.0605968]
[1641727052174,0.88181505,3127.8,3127.5,1.6]
[1641727052473,0.00852635,3127.7,3127.5,1.6]
[1641727052673,0.00852635,3127.7,3127.6,5.27992]
[1641727052874,0.79974,3128.5,3127.6,10.77992]
[1641727053121,0.79974,3128.5,3128.0,0.67705617]
[1641727053324,0.01250532,3128.4,3128.0,0.67705617]
[1641727053819,0.01193689,3128.3,3128.0,0.67705617]
[1641727054222,0.79974,3128.5,3128.0,0.67705617]
[1641727054223,0.01136847,3128.2,3128.0,0.67705617]
[1641727054619,0.01080005,3128.1,3128.0,0.67705617]
[1641727055822,0.01080005,3128.1,3127.9,1.38539326]
[1641727055823,0.01080005,3128.1,3127.7,0.07992]
[1641727056023,0.01080005,3128.1,3127.6,0.07992]
[1641727056223,0.01023162,3128.0,3127.1,0.07992]
[1641727056624,0.0096632,3127.9,3127.1,1.07992]
[1641727057066,0.00909478,3127.8,3127.5,1.33979155]
[1641727057265,0.00909478,3127.8,3127.6,0.07992]
[1641727057467,0.75833635,3128.3,3127.6,0.07992]
[1641727057865,0.00284212,3128.2,3127.6,0.07992]
[1641727058265,0.0022737,3128.1,3127.6,0.07992]
[1641727058667,0.00170527,3128.0,3127.6,0.71924962]
[1641727059067,0.00113685,3127.9,3127.6,0.71924962]
[1641727059668,0.00113685,3127.9,3127.6,0.68932962]
[1641727060370,0.00113685,3127.9,3127.6,0.05]
[1641727060659,0.00113685,3127.9,3126.9,0.00616843]
[1641727060660,0.79998,3127.8,3126.9,0.00616843]
[1641727060857,3.07212377,3127.7,3126.9,0.00616843]
[1641727061053,4.64748,3127.8,3127.0,0.00397896]
[1641727061451,3.8475,3127.8,3127.4,0.76802117]
[1641727061652,0.04997,3127.7,3127.0,0.00397896]
[1641727061851,0.04997,3127.8,3127.5,0.00113684]
[1641727062055,0.04997,3127.8,3127.0,0.00397896]
[1641727063353,0.79998,3127.8,3127.1,0.07992]
[1641727063753,1.5999713,3127.8,3127.2,0.00284211]
[1641727063954,1.64996,3127.7,3127.2,0.00284211]
[1641727064363,1.64996,3127.7,3127.1,0.60696818]
[1641727064764,1.64996,3127.7,3127.2,0.00284211]
[1641727064963,0.84994,3127.7,3127.2,0.00284211]
[1641727066766,0.84994,3127.7,3127.1,0.00341054]
[1641727066965,0.84994,3127.7,3127.0,0.00397896]
[1641727067270,2.44994,3127.7,3127.0,0.00397896]
[1641727067665,0.73774543,3127.3,3127.0,0.00397896]
[1641727067866,0.80025,3127.1,3127.0,0.00397896]
[1641727068117,1.80025,3127.1,3127.0,0.00397896]
[1641727068315,1.85022,3127.1,3127.0,0.00397896]
[1641727068514,1.85022,3127.1,3126.6,0.07992]
[1641727068515,2.15022,3127.1,3126.6,6.739e-05]
[1641727068714,1.34997,3127.1,3126.6,6.739e-05]
[1641727068914,0.80021,3127.0,3126.7,0.00170527]
[1641727069115,1.6004653,3126.9,3126.7,0.00170527]
[1641727069917,1.0,3127.5,3126.7,0.00170527]
[1641727070216,0.00227369,3127.4,3126.9,1.31741754]
[1641727070515,0.00170527,3127.3,3126.9,1.31741754]
[1641727070713,0.08164527,3127.3,3126.9,1.31741754]
[1641727070913,0.00113685,3127.2,3126.9,1.31741754]
[1641727071114,0.00113685,3127.2,3126.7,0.00170527]
[1641727071317,0.80009,3127.2,3126.7,0.00170527]
[1641727071965,0.80009,3127.2,3126.3,4.07734]
[1641727071966,0.80009,3127.2,3126.4,0.00341054]
[1641727072164,1.60081962,3127.2,3126.4,0.00341054]
[1641727072364,0.80021,3126.8,3126.4,0.00341054]
[1641727072567,1.6004518,3126.8,3126.1,1.05499193]
[1641727072766,0.8002418,3126.8,3126.2,0.00454739]
[1641727073869,0.80022,3126.6,3126.2,0.00454739]
[1641727074471,0.07996,3127.1,3126.2,0.00454739]
[1641727074672,2.48089962,3127.2,3126.6,1.04818229]
[1641727074871,1.60034,3127.1,3126.2,0.00454739]
[1641727075274,1.90034,3127.1,3126.2,0.00454739]
[1641727075518,0.80025,3126.7,3126.2,0.00454739]
[1641727076119,0.80025,3126.7,3126.3,1.1726981]
[1641727076316,0.07996,3127.0,3126.3,1.1726981]
[1641727076516,0.07996,3127.0,3126.9,1.03082887]
[1641727076918,0.07996,3127.0,3126.4,0.00341054]
[1641727077217,0.07996,3127.0,3126.2,0.00454739]
[1641727077622,0.8002,3126.7,3125.9,0.00625266]
[1641727078017,0.8002,3126.7,3126.1,1.34567685]
[1641727078417,0.8002,3126.7,3126.6,1.34304074]
[1641727078818,0.8002,3126.7,3126.6,1.34531443]
[1641727079277,0.8002,3126.7,3126.6,0.00227369]
[1641727079677,0.8002,3126.7,3126.3,0.00397896]
[1641727080281,0.8002,3126.7,3126.3,1.27102086]
[1641727080577,0.76468603,3126.8,3126.4,0.00341054]
[1641727080777,0.8002419,3126.7,3126.4,0.00341054]
[1641727080977,0.80032,3126.4,3125.9,0.00625266]
[1641727081177,0.80032,3126.2,3125.9,0.00625266]
[1641727081383,0.07996,3126.1,3125.9,0.00625266]
[1641727081778,0.3,3126.5,3125.9,0.00625266]
[1641727081779,0.37996,3126.4,3125.9,0.00625266]
[1641727081981,0.07996,3126.4,3125.9,2.73294917]
[1641727082178,0.07996,3126.5,3125.9,2.66894917]
[1641727082381,0.0022737,3126.3,3125.9,2.66894917]
[1641727082580,0.88034,3126.2,3125.8,1.11917902]
[1641727082782,0.88204527,3126.2,3125.8,1.11917902]
[1641727083012,0.00113685,3126.1,3125.8,1.11917902]
[1641727083614,0.80039,3126.0,3125.8,1.11917902]
[1641727083824,0.00113685,3126.1,3125.8,1.74813096]
[1641727086118,0.00113685,3126.1,3125.8,1.03923902]
[1641727090277,1.6805097,3126.6,3125.8,1.03923902]
[1641727090533,1.6005497,3126.6,3125.9,0.00113685]
[1641727090729,0.00227369,3126.5,3125.9,0.00113685]
[1641727091130,1.6005497,3126.6,3125.9,0.00113685]
[1641727091131,0.80034,3126.3,3125.9,0.00113685]
[1641727092533,0.80033,3126.1,3125.9,0.00113685]
[1641727092734,8.57996,3126.0,3125.5,0.00341054]
[1641727092933,3.18980909,3125.9,3125.5,0.00341054]
[1641727093139,3.18980909,3125.9,3125.4,0.00397897]
[1641727093140,1.6809691,3125.8,3125.4,0.00397897]
[1641727093341,4.04127054,3125.7,3125.4,0.00397897]
[1641727093533,4.04127054,3125.7,3125.3,1.21736753]
[1641727093534,4.2,3125.5,3125.2,4.08979899]
[1641727093734,4.11956367,3125.4,3124.7,1.21806445]
[1641727093934,0.00113685,3125.6,3124.8,2.86243994]
[1641727094133,0.80164105,3125.6,3124.8,0.00341054]
[1641727094373,0.80164105,3125.6,3124.8,0.08340054]
[1641727094374,0.00113685,3125.6,3124.8,0.08340054]
[1641727094775,0.00113685,3125.6,3124.9,0.00284211]
[1641727094975,0.00113685,3125.6,3125.4,0.99767976]
[1641727096776,0.80049,3125.5,3125.4,0.99767976]
[1641727097176,0.00113685,3125.6,3125.4,0.99767976]
[1641727097577,3.34937365,3126.2,3125.4,0.99767976]
[1641727097778,1.60153748,3125.8,3125.4,0.99767976]
[1641727098022,1.60267433,3125.8,3125.4,0.99767976]
[1641727098825,1.60267433,3125.8,3125.4,1.29767976]
[1641727099027,1.60267433,3125.8,3125.5,2.98297034]
[1641727099224,7.433e-05,3125.8,3125.5,3.2956386]
[1641727099423,7.433e-05,3125.8,3125.6,1.80121252]
[1641727099624,7.433e-05,3125.8,3125.7,16.99904261]
[1641727099825,7.433e-05,3125.8,3125.7,17.29904261]
[1641727100124,7.433e-05,3125.8,3125.7,18.29904261]
[1641727100325,7.433e-05,3125.8,3125.7,1.37997]
[1641727100525,7.433e-05,3125.8,3125.7,0.07997]
[1641727100727,7.433e-05,3125.8,3125.7,1.07997]
[1641727101032,7.433e-05,3125.8,3125.6,1.16486252]
[1641727101225,7.433e-05,3125.8,3125.6,0.00106252]
[1641727102368,7.433e-05,3125.8,3125.6,2.72685154]
[1641727102567,7.433e-05,3125.8,3125.5,0.00163094]
[1641727103369,7.433e-05,3125.8,3125.5,2.72848248]
[1641727103771,7.433e-05,3125.8,3125.6,0.00106252]
[1641727104373,7.433e-05,3125.8,3125.4,2.80682154]
[1641727104374,7.433e-05,3125.8,3125.5,0.00163094]
[1641727104573,0.0497,3125.7,3125.5,0.00163094]
[1641727105072,0.0497,3125.7,3125.6,2.72685154]
[1641727105272,3.4997,3125.7,3125.6,2.72685154]
[1641727105519,5.70082,3125.7,3125.6,0.78701406]
[1641727105719,8.4997,3125.7,3125.0,1.21908183]
[1641727105920,0.80068,3125.4,3125.0,1.21908183]
[1641727106122,0.04979,3125.3,3125.1,0.00284212]
[1641727106622,0.627145,3125.2,3125.1,0.00284212]
[1641727106821,1.477695,3125.2,3125.1,0.00284212]
[1641727107022,0.80071,3125.1,3124.7,0.00511581]
[1641727107222,2.277025,3125.2,3124.6,0.00568423]
[1641727107223,0.04997,3125.0,3124.6,0.00568423]
[1641727107422,0.05006,3125.1,3124.5,0.00625266]
[1641727107823,0.80077,3124.7,3124.5,0.00625266]
[1641727108023,1.95171,3124.7,3124.5,0.00625266]
[1641727108223,1.95171,3124.7,3124.3,3.87413348]
[1641727108224,1.34655,3124.7,3124.3,3.87413348]
[1641727108423,12.75,3124.6,3123.9,2.42209083]
[1641727108628,1.05011,3124.5,3123.7,4.09177047]
[1641727108824,3.204097,3124.2,3124.0,0.00284211]
[1641727109024,0.65075363,3124.1,3124.0,0.00284211]
[1641727109272,1.95075363,3124.1,3124.0,0.00284211]
[1641727109468,1.45179363,3124.1,3124.0,0.00284211]
[1641727109667,0.80096,3123.9,3123.2,1.19760799]
[1641727109867,0.80096,3123.9,3123.3,0.00397897]
[1641727110066,0.8009551,3123.8,3123.2,1.13758696]
[1641727110269,0.00284212,3123.8,3123.2,1.13758696]
[1641727110467,0.0022737,3123.7,3123.2,1.13758696]
[1641727110868,0.00170527,3123.6,3123.5,8.64870832]
[1641727112171,0.85042,3124.4,3123.9,1.37892715]
[1641727112372,0.04938,3124.7,3123.9,1.37892715]
[1641727112573,0.00397897,3124.3,3123.9,1.37892715]
[1641727112873,0.80422054,3124.2,3123.9,1.37892715]
[1641727113126,0.80422054,3124.2,3123.6,4.15]
[1641727113324,0.00284212,3124.1,3123.2,3.56149083]
[1641727113524,0.00284212,3124.1,3123.2,2.42209083]
[1641727113726,0.0022737,3124.0,3123.3,0.00170527]
[1641727114127,0.00170527,3123.9,3123.3,0.00170527]
[1641727114327,0.00170527,3123.9,3123.4,0.77094647]
[1641727114528,0.00113685,3123.8,3123.6,1.05540587]
[1641727114727,0.80203685,3123.8,3123.6,1.05540587]
[1641727114927,0.8009,3123.8,3123.6,1.05540587]
[1641727115127,0.00284212,3124.1,3123.6,1.05540587]
[1641727115527,0.0022737,3124.0,3123.6,1.05540587]
[1641727115930,0.8008167,3124.3,3123.6,1.05540587]
[1641727115931,0.00170527,3123.9,3123.6,1.05540587]
[1641727116131,0.00170527,3123.9,3123.7,2.99057783]
[1641727116333,3.7316,3124.6,3123.7,3.29057783]
[1641727116334,0.00113685,3123.8,3123.7,3.29057783]
[1641727116533,0.00113685,3123.8,3123.7,0.38003]
[1641727116969,0.00113685,3123.8,3123.7,4.0332895]
[1641727117170,0.00113685,3123.8,3123.7,20.1832895]
[1641727117668,0.00113685,3123.8,3123.7,20.9838814]
[1641727119075,0.00113685,3123.8,3123.7,22.11374652]
[1641727119774,0.00113685,3123.8,3123.7,21.31315462]
[1641727119972,0.00113685,3123.8,3123.7,23.86315462]
[1641727120623,0.00113685,3123.8,3123.7,21.31315462]
[1641727120819,0.00113685,3123.8,3123.7,5.16315462]
[1641727121020,0.86823893,3125.0,3123.8,6.45]
[1641727121219,0.86823893,3125.0,3123.9,0.08]
[1641727121220,0.04843,3124.9,3123.9,0.08]
[1641727121419,0.00511581,3124.7,3123.9,0.08]
[1641727121626,0.80587581,3124.7,3123.9,0.08]
[1641727121820,0.80081,3124.4,3123.9,0.08]
[1641727122018,0.80081,3124.4,3123.9,1.46477737]
[1641727122220,0.00284212,3124.3,3123.9,1.46477737]
[1641727122619,0.00227369,3124.2,3123.9,1.46477737]
[1641727123019,0.80076,3124.6,3123.9,1.46477737]
[1641727123020,0.00170527,3124.1,3123.9,1.46477737]
[1641727123421,0.00113685,3124.0,3123.9,1.46477737]
[1641727123622,0.00113685,3124.0,3123.9,1.38477737]
[1641727124023,0.00113685,3124.0,3123.9,6.48477737]
[1641727124274,0.00113685,3124.0,3123.9,1.38477737]
[1641727125069,0.00113685,3124.0,3123.9,7.08477737]
[1641727125668,0.00113685,3124.0,3123.9,9.81273328]
[1641727126069,0.00113685,3124.0,3123.9,13.71273328]
[1641727126271,0.00113685,3124.0,3123.9,9.81273328]
[1641727127870,0.00113685,3124.0,3123.9,14.46273328]
[1641727128319,3.685e-05,3124.0,3123.9,14.46273328]
[1641727128620,3.685e-05,3124.0,3123.9,14.84274328]
[1641727128819,0.04562,3124.7,3123.9,15.70984328]
[1641727129018,0.04562,3124.7,3124.0,21.93809276]
[1641727129219,0.04562,3124.7,3124.0,22.23809276]
[1641727129220,0.00341054,3124.6,3124.0,22.23809276]
[1641727129424,0.00341054,3124.6,3124.1,0.8005]
[1641727129620,1.60202496,3124.8,3124.5,13.43327163]
[1641727130021,0.00341054,3124.6,3124.5,13.43327163]
[1641727131024,0.00341054,3124.6,3124.5,19.73327163]
[1641727132268,0.04984,3125.4,3125.2,1.16881692]
[1641727132468,0.04984,3125.4,3125.3,0.56426272]
[1641727132469,0.85032,3125.4,3125.3,0.56426272]
[1641727134874,0.85032,3125.4,3125.2,0.13105747]
[1641727134875,0.80048,3125.4,3125.2,0.13105747]
[1641727135073,0.80048,3125.4,3124.7,3.9487]
[1641727135274,0.85033,3125.5,3124.6,5.8]
[1641727135275,0.80054,3125.2,3124.6,5.8]
[1641727135524,0.00397896,3125.3,3124.6,5.8]
[1641727135726,0.00284211,3125.1,3124.6,5.8]
[1641727135926,0.80402054,3125.2,3124.6,5.8]
[1641727136125,0.00227369,3125.0,3124.8,0.56060952]
[1641727136327,0.00284211,3125.1,3124.8,0.56060952]
[1641727136528,0.00170527,3124.9,3124.6,5.8]
[1641727136726,0.80061,3125.2,3124.6,5.8]
[1641727136727,0.00227369,3125.0,3124.6,7.00525185]
[1641727136928,0.00113684,3124.8,3124.6,7.00525185]
[1641727137130,0.80061,3124.9,3124.6,7.00525185]
[1641727137131,0.80231527,3124.9,3124.6,7.00525185]
[1641727137330,0.80061,3124.9,3124.3,3.87259]
[1641727137529,0.80061,3124.9,3124.3,0.07999]
[1641727137530,0.05095684,3124.8,3124.3,0.07999]
[1641727137729,0.05095684,3124.8,3124.4,0.00113685]
[1641727138131,0.00113684,3124.8,3124.4,0.00113685]
[1641727138531,0.80072,3124.7,3124.4,1.16729498]
[1641727138932,0.80071,3124.6,3124.4,1.16729498]
[1641727139130,0.80071,3124.6,3124.4,0.00113685]
[1641727139676,0.80071,3124.6,3124.1,0.00284212]
[1641727140071,0.80177684,3124.8,3124.1,0.00284212]
[1641727140275,0.80177684,3124.8,3124.2,1.06795816]
[1641727140673,0.80177684,3124.8,3124.3,0.00170527]
[1641727142374,0.8007,3124.7,3124.3,0.00170527]
[1641727142574,0.00113684,3124.8,3124.2,0.0022737]
[1641727142774,0.00113684,3124.8,3124.1,0.00284212]
[1641727143021,0.00113684,3124.8,3124.1,0.08284212]
[1641727143421,0.00113684,3124.8,3124.2,0.0022737]
[1641727143622,0.80177684,3124.8,3124.2,0.0022737]
[1641727144623,0.80177684,3124.8,3124.3,0.08]
[1641727145023,0.80177684,3124.8,3124.4,0.00113685]
[1641727145925,0.8007,3124.7,3124.4,0.00113685]
[1641727146326,0.80068,3124.6,3124.4,0.00113685]
[1641727147176,0.80068,3124.6,3124.4,2.72881687]
[1641727147577,0.80068,3124.6,3124.4,0.00113685]
[1641727148177,0.80068,3124.6,3124.5,2.72768002]
[1641727148780,0.80068,3124.6,3124.4,2.72881687]
[1641727148978,0.80175684,3124.8,3124.4,2.72881687]
[1641727149581,0.80175684,3124.8,3124.4,1.21830223]
[1641727150278,0.80175684,3124.8,3124.5,1.21716538]
[1641727150927,1.60243574,3124.8,3124.4,3.94598225]
[1641727151129,0.80067,3124.6,3124.4,3.94598225]
[1641727152629,1.60137,3124.6,3124.4,3.94598225]
[1641727152830,1.60137,3124.6,3124.4,2.72881687]
[1641727153031,1.64790949,3124.7,3124.4,2.72881687]
[1641727153429,0.8006973,3124.6,3124.4,2.72881687]
[1641727153831,1.6013673,3124.6,3124.4,2.72881687]
[1641727154031,2.4020673,3124.6,3124.4,2.66481687]
[1641727154475,2.4020673,3124.6,3124.3,0.08]
[1641727154676,0.80067,3124.6,3124.0,1.21716538]
[1641727154875,0.80079,3124.3,3124.0,1.21716538]
[1641727155079,0.80079,3124.3,3124.1,0.00170527]
[1641727158730,0.80178684,3124.6,3124.1,0.00170527]
[1641727159332,0.80178684,3124.6,3124.1,1.21887065]
[1641727159630,0.80178684,3124.6,3124.2,0.00113685]
[1641727159830,0.80178684,3124.6,3124.2,1.21830223]
[1641727160030,0.80178684,3124.6,3124.3,0.57056917]
[1641727161232,3.21557493,3124.9,3124.3,0.57056917]
[1641727161433,3.21557493,3124.9,3124.4,0.00113685]
[1641727161778,0.00113685,3124.8,3124.4,0.00113685]
[1641727161971,0.80065,3124.6,3124.4,0.00113685]
[1641727162373,0.80065,3124.6,3124.5,1.37953242]
[1641727164074,0.80174685,3124.8,3124.5,1.37953242]
[1641727165629,0.00113685,3124.8,3124.6,2.81234893]
[1641727165824,0.02146069,3125.2,3124.7,18.72999]
[1641727166027,0.02146069,3125.2,3124.8,3.1064858]
[1641727166224,0.00113685,3125.0,3124.9,1.60064]
[1641727166624,0.00113685,3125.0,3124.9,2.86384324]
[1641727166825,0.00113685,3125.0,3124.9,16.51320324]
[1641727167827,0.00113685,3125.0,3124.9,17.73036862]
[1641727168025,0.00113685,3125.0,3124.9,18.73036862]
[1641727168627,0.00113685,3125.0,3124.9,17.51320324]
[1641727169128,0.00113685,3125.0,3124.9,6.35499119]
[1641727169374,0.00113685,3125.0,3124.9,4.09178795]
[1641727169776,0.00113685,3125.0,3124.8,1.21716538]
[1641727170580,0.8006997,3124.9,3124.6,3.975]
[1641727170779,0.8006997,3124.9,3124.4,5.06903685]
[1641727170780,0.8007,3124.7,3124.4,0.00113685]
[1641727171077,1.6014,3124.7,3124.3,0.00284211]
[1641727171775,0.8007,3124.6,3124.3,0.00284211]
[1641727171977,1.60141,3124.6,3124.3,0.00284211]
[1641727172378,1.60145,3124.6,3124.3,0.00284211]
[1641727172579,2.96675,3124.6,3124.2,0.00341054]
[1641727172777,2.96675,3124.6,3124.3,0.00284211]
[1641727173026,2.96675,3124.6,3124.1,1.21716538]
[1641727173027,1.1008235,3124.4,3124.2,0.00341054]
[1641727173228,1.22057592,3124.1,3123.4,7.29891464]
[1641727173430,1.60214,3123.9,3123.4,3.20712669]
[1641727173628,1.60214,3123.9,3123.0,2.42209083]
[1641727173629,1.60214,3123.6,3123.0,2.42209083]
[1641727173928,39.99157418,3123.7,3123.1,0.00625266]
[1641727174127,0.80095,3123.6,3123.0,2.31574599]
[1641727174627,0.0022737,3123.5,3123.1,0.62134168]
[1641727175026,37.08273865,3123.7,3123.1,2.72863201]
[1641727175426,0.00113684,3123.6,3123.2,0.00113685]
[1641727175830,0.80206684,3123.6,3123.0,1.34656935]
[1641727176229,0.00170527,3123.5,3123.0,1.28256935]
[1641727176630,0.00113685,3123.4,3123.1,2.72863201]
[1641727177077,0.80099,3123.4,3123.1,2.72863201]
[1641727178274,0.00170527,3123.5,3123.1,2.72863201]
[1641727178577,0.80094,3123.6,3123.1,2.72863201]
[1641727178578,0.00113685,3123.4,3123.1,2.72863201]
[1641727178976,0.00170527,3123.5,3123.1,2.72863201]
[1641727179375,0.00113685,3123.4,3123.1,2.72863201]
[1641727179776,0.80101,3123.3,3123.1,2.72863201]
[1641727179977,0.80101,3123.3,3123.0,2.72863201]
[1641727181125,0.63071827,3123.1,3123.0,2.72863201]
[1641727181321,0.80101,3123.3,3123.0,2.72863201]
[1641727181322,0.80109,3123.2,3123.0,2.72863201]
[1641727181522,0.80101,3123.3,3123.0,2.72976886]
[1641727181722,0.80266527,3123.5,3123.0,2.72976886]
[1641727182121,0.00113685,3123.4,3123.0,2.72976886]
[1641727182321,0.00113685,3123.4,3123.0,0.00113685]
[1641727182822,0.00113685,3123.4,3123.1,2.72863201]
[1641727182823,0.80213685,3123.4,3123.1,2.72863201]
[1641727183525,0.80213685,3123.4,3122.8,0.0022737]
[1641727184123,0.80213685,3123.4,3123.2,2.72863201]
[1641727185186,0.80213685,3123.4,3122.8,0.0022737]
[1641727185987,0.80213685,3123.4,3122.6,0.00341054]
[1641727186188,0.80213685,3123.4,3122.6,2.73220176]
[1641727186586,0.80213685,3123.4,3122.7,0.00284212]
[1641727187587,0.70690325,3123.0,3122.7,0.00284212]
[1641727187787,1.60235,3122.9,3122.7,0.00284212]
[1641727188827,2.4035629,3122.9,3122.7,0.00284212]
[1641727189226,0.3,3122.8,3122.7,0.00284212]
[1641727189625,10.0,3122.8,3122.7,0.00284212]
[1641727190224,10.3,3122.8,3122.6,0.00341054]
[1641727190424,11.90277,3122.8,3122.6,0.00341054]
[1641727191878,3.20277,3122.8,3122.6,0.00341054]
[1641727193279,2.4035629,3122.9,3122.6,0.00341054]
[1641727193280,1.60235,3122.9,3122.6,0.00341054]
[1641727193483,0.80118,3122.9,3122.6,0.00341054]
[1641727193680,3.20585125,3123.4,3122.4,0.08005]
[1641727193681,0.80222685,3123.4,3122.4,0.08005]
[1641727193879,0.24293472,3124.0,3123.0,1.12586734]
[1641727194081,7.0,3123.7,3123.0,1.12586734]
[1641727194282,0.00454739,3123.4,3123.0,1.12586734]
[1641727194679,1.84494472,3124.0,3123.0,1.12586734]
[1641727194680,1.92791893,3123.3,3123.0,1.12586734]
[1641727195080,0.00341054,3123.2,3123.0,1.12586734]
[1641727195522,0.00284211,3123.1,3123.0,1.12586734]
[1641727195930,0.80099,3123.6,3123.0,1.12586734]
[1641727196323,0.0022737,3123.5,3123.0,1.12586734]
[1641727196524,53.30464552,3123.4,3122.5,7.865]
[1641727196724,53.3063508,3123.4,3122.5,3.6769]
[1641727196927,0.00113685,3123.3,3122.6,0.00284211]
[1641727197230,0.00113685,3123.3,3122.6,2.73174203]
[1641727197625,0.00113685,3123.3,3122.7,0.00227369]
[1641727200374,44.4715497,3123.2,3122.7,0.00227369]
[1641727200572,0.00113685,3123.3,3122.7,0.00227369]
[1641727201674,0.04594037,3123.6,3122.7,0.00227369]
[1641727201874,0.04594037,3123.6,3123.0,1.02071111]
[1641727202079,0.00113685,3123.5,3123.0,1.02071111]
[1641727202274,0.00113685,3123.5,3123.1,0.00113685]
[1641727203034,0.00113685,3123.5,3122.9,0.63202813]
[1641727203237,0.00113685,3123.5,3123.0,0.00170527]
[1641727203434,0.80103,3123.4,3123.0,0.00170527]
[1641727203635,0.80103,3123.4,3122.6,0.00397896]
[1641727203836,2.60212,3123.4,3122.6,0.00397896]
[1641727204036,2.60212,3123.4,3122.6,2.73293561]
[1641727204037,2.90212,3123.4,3122.6,2.73293561]
[1641727204436,2.90212,3123.4,3122.7,0.00341054]
[1641727204837,0.77758869,3123.2,3122.7,0.00341054]
[1641727205037,0.80114,3123.0,3122.6,0.00397896]
[1641727205440,0.80114,3123.0,3122.5,0.00454739]
[1641727206038,2.80928724,3122.9,3122.5,0.00454739]
[1641727206237,2.80928724,3122.9,3122.3,3.19670391]
[1641727206238,0.56183098,3122.6,3122.4,0.00511581]
[1641727207279,0.56183098,3122.6,3122.3,3.15181972]
[1641727207475,1.60273,3122.5,3122.3,3.15181972]
[1641727208376,2.75679717,3122.4,3122.3,3.15181972]
[1641727208578,1.60273,3122.5,3122.3,3.15181972]
[1641727208776,2.404101,3122.5,3122.3,3.15181972]
[1641727209381,0.8013,3122.4,3122.3,3.15181972]
[1641727209978,0.8013,3122.4,3122.3,7.10181972]
[1641727210179,0.8013,3122.4,3122.3,3.15181972]
[1641727210640,1.9025472,3123.0,3122.3,3.15181972]
[1641727210641,5.0273,3123.4,3122.8,1.05779603]
[1641727210836,4.66346,3123.4,3122.8,1.05779603]
[1641727211035,5.93654037,3123.6,3123.3,1.35003241]
[1641727211036,0.04594037,3123.6,3123.3,1.35003241]
[1641727211237,0.04594037,3123.6,3123.3,2.48613241]
[1641727211436,0.00568424,3123.4,3123.3,2.48613241]
[1641727212037,0.00568424,3123.4,3123.3,9.98376293]
[1641727212443,0.00568424,3123.4,3123.3,9.02053241]
[1641727213041,0.00568424,3123.4,3123.3,13.22053241]
[1641727213436,0.00568424,3123.4,3123.3,9.02053241]
[1641727213638,0.00568424,3123.4,3123.3,11.74907397]
[1641727216377,0.80085,3124.0,3123.9,0.10324921]
[1641727216578,0.80085,3124.0,3123.8,1.10994109]
[1641727216778,0.00284211,3123.9,3123.8,1.10994109]
[1641727218026,0.80089,3123.8,3123.1,0.08001]
[1641727218224,0.00284211,3123.9,3123.1,0.08001]
[1641727218423,0.00170527,3123.7,3123.2,0.00113685]
[1641727218628,1.60269252,3123.5,3123.2,0.00113685]
[1641727218823,1.60269252,3123.5,3123.2,2.72960661]
[1641727220130,1.60269252,3123.5,3123.3,1.00438289]
[1641727220625,1.60269252,3123.5,3123.4,3.36112704]
[1641727221787,0.00113684,3123.6,3123.4,3.36112704]
[1641727221788,0.00113684,3123.6,3123.4,3.66112704]
[1641727221979,0.00113684,3123.6,3123.5,12.13003]
[1641727222181,0.00113684,3123.6,3123.5,12.43003]
[1641727222382,0.00113684,3123.6,3123.5,16.45849976]
[1641727222582,0.00113684,3123.6,3123.5,15.65918996]
[1641727222786,0.00113684,3123.6,3123.5,16.95918996]
[1641727222984,0.00113684,3123.6,3123.5,17.25918996]
[1641727223885,0.00113684,3123.6,3123.5,23.85918996]
[1641727224686,0.00113684,3123.6,3123.5,28.75404058]
[1641727226027,0.00113684,3123.6,3123.5,7.70340058]
[1641727226228,0.00113684,3123.6,3123.5,6.90271038]
[1641727226630,3.684e-05,3123.6,3123.5,7.95801038]
[1641727226829,3.684e-05,3123.6,3123.5,24.70801038]
[1641727227427,3.684e-05,3123.6,3123.5,26.10865038]
[1641727227629,3.684e-05,3123.6,3123.5,27.59425038]
[1641727228330,3.684e-05,3123.6,3123.5,27.60639023]
[1641727228729,3.684e-05,3123.6,3123.5,46.51639023]
[1641727229128,0.02146069,3124.2,3124.1,19.87057592]
[1641727229384,2.79442,3126.1,3125.5,2.00127633]
[1641727229585,1.60064,3126.1,3125.5,2.00127633]
[1641727229783,1.60064,3126.1,3125.5,0.3996106]
[1641727230284,0.80031,3126.1,3125.5,0.3996106]
[1641727230486,3.8188,3126.3,3125.5,0.3996106]
[1641727230682,3.8188,3126.3,3125.7,0.66842336]
[1641727230887,0.01421059,3126.1,3125.5,0.3996106]
[1641727231285,0.01364217,3126.0,3125.1,0.6]
[1641727231486,0.01364217,3126.0,3124.9,1.3]
[1641727231687,0.01307374,3125.9,3124.9,1.6]
[1641727232087,0.01307374,3125.9,3125.2,0.62424356]
[1641727232088,0.81289532,3125.8,3125.2,0.62424356]
[1641727232387,0.01193689,3125.7,3125.5,1.176262]
[1641727232588,0.01193689,3125.7,3125.2,0.62424356]
[1641727232789,0.01136847,3125.6,3124.8,12.073]
[1641727233033,0.80049,3125.5,3124.8,3.7708]
[1641727233231,0.8005,3125.3,3124.4,1.1775]
[1641727233431,0.81129005,3125.5,3124.2,3.78639]
[1641727233432,0.01023162,3125.4,3124.2,3.78639]
[1641727233631,0.00909478,3125.2,3124.3,1.23548483]
[1641727233832,2.31247854,3125.1,3124.3,1.23548483]
[1641727234032,2.92100489,3125.1,3124.3,1.23548483]
[1641727234233,0.80065,3124.7,3124.3,1.23548483]
[1641727234532,0.00568424,3124.6,3124.3,1.23548483]
[1641727234932,0.00511581,3124.5,3124.3,1.23548483]
[1641727235333,0.00454739,3124.4,3124.3,1.23548483]
[1641727236334,0.00454739,3124.4,3124.1,1.25404113]
[1641727236784,0.00397897,3124.3,3124.1,1.25404113]
[1641727236980,0.80074,3124.5,3124.1,1.25404113]
[1641727236981,0.7910768,3124.5,3124.1,1.25404113]
[1641727237279,0.60052186,3124.4,3124.1,1.22057592]
[1641727237680,5.09171436,3124.4,3124.1,1.22057592]
[1641727238083,1.80088,3124.3,3124.1,1.22057592]
[1641727238479,36.42285255,3124.2,3124.1,1.22057592]